[Event "13th Chennai Open 2022"]
[Site "Chennai"]
[Date "2022.06.25"]
[Round "9.9"]
[White "Priyanka, Kumari"]
[Black "Srihari L R"]
[Result "0-1"]
[ECO "B40"]
[WhiteElo "1910"]
[BlackElo "2404"]
[Annotator "TA"]
[PlyCount "126"]
[EventDate "2022.06.19"]
[EventType "swiss"]
[EventCountry "IND"]
[SourceTitle "playchess.com"]
[Source "ChessBase"]
[SourceQuality "1"]
[TimeControl "5400+30"]

{[%evp 9,126,10,2,-29,-23,-27,-22,-31,-25,-30,0,-14,-2,-3,0,-15,4,-12,-10,-10,27,24,0,-32,-25,-26,-14,-23,-28,-33,-28,-30,-34,-28,-37,-79,-86,-135,-125,-132,-114,-128,-89,-171,-182,-176,-174,-241,-125,-150,-156,-132,-147,-154,-131,-193,-187,-366,-195,-466,-466,-449,-453,-407,-245,-1144,-1160,-1196,-1098,-1062,-813,-1668,-1683,-12825,-6528,-3034,-1076,-29979,-29980,-29979,-29980,-29967,-1212,-1243,-1130,-1226,-1191,-29972,-29974,-29976,-29977,-29976,-29977,-29978,-29975,-29976,-29973,-29973,-29974,-29973,-29974,-29972,-29977,-29977,-29978,-29984,-29979,-29987,-29988,-29988,-29989,-29990,-29991,-29991,-29991,-29992,-29993,-29994,-29994]} 1. e4 {[%emt 0:00:21]} c5 {[%emt 0:00:16]} 2. Nf3 {[%emt 0:00:17]} e6 {[%emt 0:00:08]} 3. g3 {[%emt 0:04:21]} Nc6 {[%emt 0:02:11]} 4. Bg2 {[%emt 0:00:24]} Nf6 {[%emt 0:01:19]} 5. Nc3 {[%emt 0:05:28]} d5 {[%emt 0:00:55]} 6. d3 {[%emt 0:13:38] B40: Sicilian: 2...e6, Unusual lines.} d4 {[%emt 0:19:33]} 7. Ne2 {[%emt 0:00:29]} e5 {[%emt 0:00:21]} 8. Nd2 {[%emt 0:03:01] The position is equal.} Be6 {[%emt 0:04:54]} 9. f4 {[%emt 0:12:44] [#]} b5 $146 ({Predecessor:} 9... Ng4 10. Nf3 f6 11. h3 Nh6 12. fxe5 fxe5 {½-½ (12) Jovanovic,S (2325)-Jelic,G (2210) Belgrade 2007}) 10. h3 {[%emt 0:07:50]} c4 {[%emt 0:28:35]} 11. a3 {[%emt 0:04:18]} Qb6 {[%emt 0:04:51]} 12. Nf3 {[%emt 0:11:24]} Bd6 {[%emt 0:02:49]} 13. g4 {[%emt 0:04:57][%cal Bg3g4,Bg4g5][%mdl 32]} Rd8 {[%emt 0:08:46]} 14. g5 {[%emt 0:03:49]} cxd3 {[%emt 0:07:00]} 15. cxd3 {[%emt 0:00:41]} Nxe4 {[%emt 0:00:20][%cal Oe5f4]} 16. Nxe5 {[%emt 0:06:00]} (16. f5 $5 {[%cal Rf5e6]} Bc4 17. dxe4 $14) 16... Bxe5 {[%emt 0:00:50]} (16... Nxe5 $2 17. fxe5 Nc3 18. bxc3 $18) 17. Bxe4 {[%emt 0:00:22]} f5 {[%emt 0:00:07]} 18. gxf6 {[%emt 0:06:13]} Bxf6 {[%emt 0:00:13]} 19. Ng3 {[%emt 0:00:49]} Ne7 {[%emt 0:00:46][%cal Bc6e7,Be7d5,Bd5e3][%mdl 32]} 20. Bd2 {[%emt 0:06:34]} O-O {[%emt 0:02:55]} 21. O-O {[%emt 0:00:39]} ({Much weaker is} 21. Qh5 g6 22. Qf3 Rc8 $17) 21... Nd5 {[%emt 0:01:02] Strongly threatening ...Ne3.} 22. Qe2 {[%emt 0:03:53]} Ne3 $1 {[%emt 0:00:51]} 23. Bxe3 {[%emt 0:02:39]} ({White should play} 23. Rf3) 23... dxe3 $17 {[%emt 0:00:05]} 24. Kh2 {[%emt 0:00:33]} Kh8 {[%emt 0:00:53]} 25. Rac1 {[%emt 0:00:22]} Rc8 {[%emt 0:00:38] Inhibits Rc6.} 26. Rfe1 {[%emt 0:00:27]} (26. Rxc8 $17 Rxc8 27. Nf5) 26... Bd4 $1 $19 {[%emt 0:00:40]} 27. Qh5 {[%emt 0:01:11][%csl Ge4][%cal Rh5h7]} Bg8 {[%emt 0:00:06] aiming for ...Rxc1. Active counter play!} 28. b4 {[%emt 0:00:27]} (28. Rxc8 $142 Rxc8 29. b4) 28... a6 {[%emt 0:01:02]} ({Better is} 28... Rxc1 $19 29. Rxc1 Qb8) 29. Ne2 {[%emt 0:00:16] [#]} Bb2 {[%emt 0:00:20][%csl LRa3,LRc1][%cal Bd4b2,Bb2a3,Ba3b4,Bb4d6][%mdl 32]} 30. Rxc8 {[%emt 0:00:25]} Rxc8 {[%emt 0:00:04][%cal Bf8c8,Bc8c2,Bc2d2][%mdl 32]} 31. Qf5 {[%emt 0:00:44]} Rc2 {[%emt 0:01:29]} 32. d4 {[%emt 0:00:31]} (32. Kg3 $17) 32... Rd2 {[%emt 0:00:16]} 33. d5 {[%emt 0:00:37]} (33. Kg3 {was worth a try.}) 33... Qf6 {[%emt 0:00:53]} (33... Bxa3 $142 34. Bf3 Bxb4) 34. Qg4 $2 {[%emt 0:00:23]} (34. Qxf6 {is the only way for White.} gxf6 35. Bf3) 34... Bxa3 {[%emt 0:00:19]} 35. Kg3 {[%emt 0:00:37]} Bxb4 {[%emt 0:00:20][%cal Od2d4] This bishop pair is nice.} 36. Rc1 {[%emt 0:00:23]} Bd6 {[%emt 0:01:07][%cal Od2e2] White must now prevent ...Rxe2!} 37. Rc2 $2 {[%emt 0:00:38]} (37. Kf3) 37... Rxc2 {[%emt 0:02:41]} 38. Bxc2 {[%emt 0:00:01]} g5 {[%emt 0:00:18]} 39. Qc8 {[%emt 0:01:00]} Kg7 {[%emt 0:01:38][%cal Rd6f4] Threatens to win with ...Bxf4+.} 40. Qd7+ {[%emt 0:00:24]} Bf7 {[%emt 0:00:14]} 41. Bf5 {[%emt 0:00:23]} gxf4+ {[%emt 0:00:49]} 42. Kf3 {[%emt 0:00:13]} Kh6 {[%emt 0:00:46]} 43. Be6 {[%emt 0:00:56]} Bh5+ {[%emt 0:00:15]} 44. Bg4 {[%emt 0:00:16]} Bg6 {[%emt 0:00:08]} 45. Qe6 {[%emt 0:00:44] [#]} Qxe6 {[%emt 0:00:21]} (45... Qh4 $142 $1 46. Bf5 Qf2+ 47. Ke4 Qxe2 48. Qxd6 Qc2+ 49. Kxf4 Qh2+ 50. Kxe3 Qxd6 51. Bd3 Qg3+ 52. Kd4 Qxd3+ 53. Kc5 Be4 54. Kc6 Qxd5+ 55. Kb6 b4 56. Kc7 b3 57. Kc8 b2 58. h4 b1=Q 59. Kc7 Qbb7#) 46. dxe6 {[%emt 0:00:13][%mdl 4096] Endgame KBB-KBN} Kg5 {[%emt 0:00:33] Hoping for ...h5.} 47. h4+ {[%emt 0:00:46]} Kf6 {[%emt 0:01:21]} 48. Nxf4 {[%emt 0:00:28]} Bxf4 {[%emt 0:00:08] Black mates.} 49. Kxf4 {[%emt 0:00:03] KB-KB} h5 {[%emt 0:00:05]} 50. Be2 {[%emt 0:00:14]} Kxe6 {[%emt 0:00:04]} 51. Kxe3 {[%emt 0:00:02]} Ke5 {[%emt 0:00:11]} 52. Bf1 {[%emt 0:00:23]} Bf5 {[%emt 0:00:19]} 53. Be2 {[%emt 0:00:14]} Bg4 {[%emt 0:00:19]} 54. Bd3 {[%emt 0:00:05]} Kd5 {[%emt 0:00:16]} 55. Bf1 {[%emt 0:00:20]} Kc5 {[%emt 0:00:05]} 56. Kd2 {[%emt 0:00:22]} a5 {[%emt 0:00:05][%cal Ba6a5,Ba5a4,Ba4a3][%mdl 32]} 57. Kc3 {[%emt 0:00:15]} a4 {[%emt 0:00:22]} 58. Kb2 {[%emt 0:00:22]} b4 {[%emt 0:00:05][%cal Bb5b4,Bb4b3][%mdl 32]} 59. Ka2 {[%emt 0:00:10]} Be6+ {[%emt 0:00:07]} 60. Kb2 {[%emt 0:00:06]} a3+ {[%emt 0:00:09]} 61. Kb1 {[%emt 0:00:30]} Kd4 {[%emt 0:00:41]} 62. Kc2 {[%emt 0:00:16]} b3+ {[%emt 0:00:07]} 63. Kb1 {[%emt 0:00:07]} Kc3 {[%emt 0:00:06] Weighted Error Value: White=0.82/Black=0.33} 0-1

[Event "13th Chennai Open 2022"]
[Site "Chennai"]
[Date "2022.06.25"]
[Round "9.10"]
[White "Laxman, R.R."]
[Black "Jubin Jimmy"]
[Result "1/2-1/2"]
[ECO "D32"]
[WhiteElo "2420"]
[BlackElo "2259"]
[Annotator "TA"]
[PlyCount "78"]
[EventDate "2022.06.19"]
[EventType "swiss"]
[EventCountry "IND"]
[SourceTitle "playchess.com"]
[Source "ChessBase"]
[SourceQuality "1"]
[TimeControl "5400+30"]

{[%evp 25,78,28,24,4,36,29,33,37,39,26,29,36,42,38,44,43,47,40,50,34,25,23,26,18,16,14,16,14,13,0,0,0,0,0,2,0,0,0,0,0,0,0,0,0,0,0,0,-6,-6,-6,0,0,0,4,4]} 1. Nf3 {[%emt 0:00:04]} Nf6 {[%emt 0:00:41]} 2. c4 {[%emt 0:00:13]} e6 {[%emt 0:00:04]} 3. Nc3 {[%emt 0:02:04]} d5 {[%emt 0:00:39]} 4. e3 {[%emt 0:00:27]} c5 {[%emt 0:00:34]} 5. d4 {[%emt 0:00:06]} Nc6 {[%emt 0:00:23]} 6. cxd5 {[%emt 0:00:12]} exd5 {[%emt 0:01:34]} 7. Be2 {[%emt 0:00:11]} Be7 {[%emt 0:00:05]} 8. O-O {[%emt 0:00:21]} O-O {[%emt 0:00:06]} 9. dxc5 {[%emt 0:00:29]} Bxc5 {[%emt 0:00:07]} 10. b3 {[%emt 0:00:13]} Be6 {[%emt 0:01:34]} 11. Bb2 {[%emt 0:00:22]} Qe7 {[%emt 0:01:04]} 12. Nb5 {[%emt 0:08:10]} Rac8 {[%emt 0:02:59]} 13. Rc1 {[%emt 0:02:09]} Ne4 {[%emt 1:27:10]} 14. Nfd4 {[%emt 0:01:28] D32: Tarrasch Defence: Sidelines and lines without g3.} Nxd4 {[%emt 0:00:00]} 15. Nxd4 {[%emt 0:03:59]} Ba3 {[%emt 0:00:00]} 16. Rxc8 {[%emt 0:00:58] White is slightly better.} Rxc8 {[%emt 0:00:00]} 17. Qa1 {[%emt 0:00:47]} Bxb2 {[%emt 0:00:00]} 18. Qxb2 {[%emt 0:00:31]} Qc5 {[%emt 0:00:00]} 19. Bd3 {[%emt 0:04:11] [#]} Nf6 $146 {[%emt 0:00:00][%cal Be4f6,Bf6d7,Bd7e5,Be5c6,Bc6b4][%mdl 32]} ({Predecessor:} 19... Qc3 20. Qe2 Nf6 21. Rd1 Bg4 22. f3 Bh5 23. Qd2 Bg6 24. Bf1 Qc5 25. Ne2 Qa3 {1-0 (93) Lopez Martinez,J (2578)-Petrov,M (2465) Karlsruhe 2019}) 20. Ne2 {[%emt 0:01:03]} Qd6 {[%emt 0:00:00]} 21. h3 {[%emt 0:02:13] Inhibits Ng4.} Nd7 {[%emt 0:00:00]} 22. Rc1 {[%emt 0:04:32]} Rxc1+ {[%emt 0:00:00]} 23. Qxc1 {[%emt 0:00:31]} Ne5 {[%emt 0:00:00]} 24. Bb1 {[%emt 0:00:58]} Nc6 {[%emt 0:00:00] The position is equal.} 25. Qc3 {[%emt 0:00:30]} g6 {[%emt 0:00:00]} 26. Bd3 {[%emt 0:05:52]} a6 {[%emt 0:00:00]} 27. a4 {[%emt 0:01:05]} Qb4 {[%emt 0:00:00]} 28. Qxb4 {[%emt 0:00:49]} Nxb4 $11 {[%emt 0:00:00][%mdl 4096] Endgame KBN-KBN} 29. Bb1 {[%emt 0:00:05]} Nc6 {[%emt 0:00:00]} 30. Bc2 {[%emt 0:00:06]} Kf8 {[%emt 0:00:00]} 31. Kf1 {[%emt 0:00:02]} Ke7 {[%emt 0:00:00]} 32. Ke1 {[%emt 0:00:04]} Kd6 {[%emt 0:00:00]} 33. Kd2 {[%emt 0:00:04]} Kc5 {[%emt 0:00:00]} 34. Kc3 {[%emt 0:00:02]} b5 {[%emt 0:00:00]} 35. axb5 {[%emt 0:00:12]} axb5 {[%emt 0:00:00]} 36. Nd4 b4+ {[%emt 0:00:00]} 37. Kd3 Nxd4 {[%emt 0:00:00]} 38. exd4+ Kd6 {[%emt 0:00:00]} 39. Ke3 h6 {[%emt 0:00:00] Weighted Error Value: White=0.03 (flawless) /Black=0.03 (flawless)} 1/2-1/2

[Event "13th Chennai Open 2022"]
[Site "Chennai"]
[Date "2022.06.25"]
[Round "9.11"]
[White "Nguyen, Van Huy"]
[Black "Hirthickkesh PR"]
[Result "1-0"]
[ECO "E11"]
[WhiteElo "2405"]
[BlackElo "2232"]
[Annotator "TA"]
[PlyCount "59"]
[EventDate "2022.06.19"]
[EventType "swiss"]
[EventCountry "IND"]
[SourceTitle "playchess.com"]
[Source "ChessBase"]
[SourceQuality "1"]
[TimeControl "5400+30"]

{[%evp 10,59,38,32,60,64,58,63,68,54,89,87,91,68,96,68,108,115,120,101,106,63,53,48,86,85,85,75,68,66,72,61,65,64,251,164,156,65,57,44,45,41,5481,5404,5306,5222,3128,2485,29986,29987,29990,29991]} 1. d4 {[%emt 0:00:10]} Nf6 {[%emt 0:00:13]} 2. c4 {[%emt 0:00:19]} e6 {[%emt 0:00:24]} 3. Nf3 {[%emt 0:00:08]} Bb4+ {[%emt 0:00:07]} 4. Nbd2 {[%emt 0:00:19]} O-O {[%emt 0:02:02]} 5. g3 {[%emt 0:00:27]} d6 {[%emt 1:30:14]} 6. Bg2 {[%emt 1:32:07]} Nbd7 {[%emt 0:00:30] E11: Bogo-Indian.} 7. O-O {[%emt 0:00:30]} e5 {[%emt 0:00:00]} 8. Nb3 {[%emt 0:00:30] Hoping for a3.} exd4 {[%emt 0:01:00] White is slightly better.} 9. Nfxd4 {[%emt 0:00:30] [#]} Bc5 $146 {[%emt 0:00:30]} ({Predecessor:} 9... Re8 10. Qc2 Nc5 11. a3 Nxb3 12. Nxb3 Bc5 13. Nxc5 dxc5 14. b3 Qe7 15. Re1 Ne4 {½-½ (66) Dubov,D (2710)-Carlsen,M (2847) chess24.com INT 2021}) 10. Nxc5 {[%emt 0:00:30]} Nxc5 {[%emt 0:00:30]} 11. b4 {[%emt 0:00:30]} Ncd7 {[%emt 0:00:30]} 12. Bb2 {[%emt 0:00:30] White is more active.} Ne5 {[%emt 0:00:30]} 13. Qc2 {[%emt 0:00:30]} Bd7 {[%emt 0:00:30]} 14. Rad1 {[%emt 0:00:30]} ({Not} 14. Bxb7 Rb8 15. Bd5 c6 $11) 14... Qc8 {[%emt 0:00:30]} 15. Nf3 {[%emt 0:00:30]} Re8 {[%emt 0:00:30]} 16. c5 {[%emt 0:00:30]} Bh3 {[%emt 0:00:30]} 17. Bxh3 {[%emt 0:00:30]} Qxh3 {[%emt 0:00:30]} 18. cxd6 {[%emt 0:00:30]} cxd6 {[%emt 0:00:30]} 19. Rxd6 {[%emt 0:00:30]} Rac8 {[%emt 0:00:30]} 20. Qb3 {[%emt 0:00:30]} Nc4 {[%emt 0:00:30]} 21. Rd4 {[%emt 0:00:30]} Rxe2 $2 {[%emt 0:00:30]} 22. Rxc4 {[%emt 0:00:30]} Rxc4 {[%emt 0:00:30]} 23. Qxc4 {[%emt 0:00:30]} (23. Bxf6 $16 Rc8 24. Qd3) 23... Rxb2 $14 {[%emt 0:00:30]} 24. Rd1 {[%emt 0:00:30] Intending Rd8+ and mate.} (24. Qd4 $5 {[%cal Rd4d8]} Re2 25. Qxa7 $14) 24... h6 {[%emt 0:00:30]} 25. Ne5 $40 {[%emt 0:00:30][%mdl 128] Against Qg4. Black needs to defend precisely.} Qh5 {[%emt 0:00:30][%mdl 8192]} (25... Qf5 $14 26. Qxf7+ Kh7) 26. Rd8+ $18 {[%emt 0:00:30]} Kh7 {[%emt 0:00:30]} 27. Qd3+ {[%emt 0:00:30]} g6 {[%emt 0:00:30] [#]} 28. Qc4 $1 {[%emt 0:00:30][%cal Rc4f7]} g5 {[%emt 0:00:30]} (28... Nd5 29. Qxd5) 29. g4 {[%emt 0:00:30]} b5 {[%emt 0:00:30]} 30. Qd3+ {[%emt 0:00:30] Weighted Error Value: White=0.12 (very precise) /Black=0.57} ({Stronger than} 30. gxh5 bxc4 31. Rf8 Nxh5 32. Nxc4 Rb1+ 33. Kg2 Kg7 $15) 1-0

[Event "13th Chennai Open 2022"]
[Site "Chennai"]
[Date "2022.06.25"]
[Round "9.13"]
[White "Rohit S"]
[Black "Tran, Tuan Minh"]
[Result "1/2-1/2"]
[ECO "B33"]
[WhiteElo "2141"]
[BlackElo "2533"]
[Annotator "TA"]
[PlyCount "105"]
[EventDate "2022.06.19"]
[EventType "swiss"]
[EventCountry "IND"]
[SourceTitle "playchess.com"]
[Source "ChessBase"]
[SourceQuality "1"]
[TimeControl "5400+30"]

{[%evp 16,105,43,52,40,41,40,25,24,12,31,56,92,94,93,88,97,83,83,85,66,76,64,62,103,20,78,74,75,68,69,71,132,146,147,0,0,0,0,0,0,-6,-10,-30,0,0,0,-27,-25,-58,-51,-34,-31,-43,-37,-54,-29,-29,-25,-129,-4,-1,-15,-14,0,0,0,0,0,0,0,0,12,12,12,12,12,12,12,12,12,0,0,0,0,0,0,0,0,-8,-8,-8]} 1. e4 {[%emt 0:00:02]} c5 {[%emt 0:01:33]} 2. Nf3 {[%emt 0:00:07]} Nc6 {[%emt 0:00:15]} 3. d4 {[%emt 0:00:05]} cxd4 {[%emt 0:00:03]} 4. Nxd4 {[%emt 0:00:06]} Qb6 {[%emt 0:00:29]} 5. Nb3 {[%emt 0:00:28]} Nf6 {[%emt 0:00:32]} 6. Nc3 {[%emt 0:00:14]} e6 {[%emt 0:00:14]} 7. a3 {[%emt 0:00:46]} Be7 {[%emt 0:00:39]} 8. Be3 $1 {[%emt 0:01:36] 8.Be3 scores better than 8.Bf4.} Qc7 {[%emt 0:00:08]} 9. f4 {[%emt 0:00:18]} O-O {[%emt 0:00:33][%cal Od7d5] B33: Sicilian: Pelikan and Sveshnikov Variations.} 10. Bd3 {[%emt 0:06:51]} d6 {[%emt 0:02:19]} 11. Qe2 {[%emt 0:06:51]} a6 {[%emt 0:00:05] White has an edge.} 12. g4 {[%emt 0:01:57][%cal Bg2g4,Bg4g5][%mdl 32]} b5 {[%emt 0:00:33] [#]} 13. g5 $146 {[%emt 0:00:20]} ({Predecessor:} 13. Na2 e5 14. g5 exf4 15. Bxf4 Ng4 16. Qg2 f6 17. g6 hxg6 18. O-O-O g5 19. Bd2 {0-1 (25) Henkel,A (1660)-Sperlin,M (2170) IECG email 2006}) 13... Ne8 {[%emt 0:01:27]} 14. f5 {[%emt 0:00:46]} b4 {[%emt 0:00:56]} 15. axb4 {[%emt 0:01:39]} Nxb4 {[%emt 0:00:05]} 16. Rg1 {[%emt 0:01:02]} Nxd3+ {[%emt 0:04:45]} 17. Qxd3 {[%emt 0:00:19]} d5 {[%emt 0:02:10]} 18. f6 {[%emt 0:02:09]} Bb4 {[%emt 0:00:40]} 19. exd5 {[%emt 0:03:22]} a5 {[%emt 0:02:46]} 20. Bd2 {[%emt 0:22:09] 0x0.00222977c817dp-1022s more active pieces.} (20. fxg7 $1 $16 Nxg7 21. d6 Qxd6 22. Qxd6 Bxd6 23. Ne4 Bxh2 24. Nf6+ (24. Rh1 Be5 $11) 24... Kh8 25. Rh1 Bg3+ 26. Bf2 Bxf2+ 27. Kxf2) 20... Ba6 {[%emt 0:27:47]} (20... Bxc3 21. Bxc3 g6 22. O-O-O $16) (20... a4 $11) 21. Qe3 {[%emt 0:12:15]} Nd6 {[%emt 0:03:34][%cal Oa5a4]} 22. dxe6 {[%emt 0:01:43]} Nc4 {[%emt 0:05:01][%csl LRb2,LRe3,LRh2]} 23. Qg3 {[%emt 0:02:58]} Bd6 {[%emt 0:07:56]} (23... Qxg3+ $142 24. Rxg3 fxe6) 24. Qh3 $1 $16 {[%emt 0:01:29]} Nxb2 {[%emt 0:16:52] [#]} 25. fxg7 $2 {[%emt 0:15:28]} (25. Rxa5 $6 Rfe8 26. g6 (26. e7 Bb4 $16) 26... hxg6 27. Rxg6 (27. fxg7 $2 Rxe6+ 28. Kf2 Kxg7 $19) 27... Rxe6+ 28. Qxe6 fxe6 $14) ({White should try} 25. Rg4 $1 $16 {[%cal Rg4h4]}) 25... Rfe8 $11 {[%emt 0:03:03]} 26. Nd5 {[%emt 0:00:31] Threatening mate with Nf6+.} Qxc2 {[%emt 0:01:50]} 27. Nf6+ {[%emt 0:00:51]} Kxg7 {[%emt 0:00:03][%cal Bg8g7,Bg7f8,Bf8e8,Be8e7,Be7d7,Bd7e6][%mdl 32]} 28. Nxe8+ {[%emt 0:00:16]} Kf8 $1 {[%emt 0:00:03]} 29. Qh6+ $1 {[%emt 0:03:35]} (29. Nxd6 $2 Nd3+ 30. Kf1 (30. Qxd3 $2 Qxd3 31. Kf2 Qxd6 $19) 30... Nf4+ 31. Ke1 Nxh3 $19) 29... Kxe8 {[%emt 0:00:12]} 30. exf7+ {[%emt 0:00:11]} Ke7 {[%emt 0:04:36]} 31. Qf6+ {[%emt 0:07:38]} (31. Rg3 $5 Bxg3+ 32. hxg3 Qxb3 33. Qf6+ Kd7 34. Qd4+ Ke7 35. Qf6+ Kd7 36. Qd4+ Ke7 37. Qf6+ $11) 31... Kd7 {[%emt 0:00:02]} 32. Qe6+ {[%emt 0:05:26]} Kxe6 {[%emt 0:02:13]} 33. Nd4+ {[%emt 0:00:01]} Kxf7 {[%emt 0:00:07] ( -> ...Qe4+)} 34. Nxc2 {[%emt 0:00:00]} Re8+ {[%emt 0:02:13]} 35. Be3 {[%emt 0:00:05]} Bxh2 {[%emt 0:06:03]} 36. Rg4 {[%emt 0:01:15]} Be5 {[%emt 0:00:05][%mdl 1024] Black has compensation.} 37. Ra2 {[%emt 0:01:25] [#]} ({Wrong is} 37. g6+ $2 hxg6 38. Kd2 Nc4+ 39. Rxc4 Bxc4 40. Rxa5 Rd8+ 41. Kc1 Ke6 $19) (37. Kd2 $1 $11 {keeps the balance.}) 37... Bc3+ {[%emt 0:01:17]} (37... Bc8 $1 $17 {[%cal Rc8g4]} 38. Rg1 Be6) 38. Kf2 {[%emt 0:00:05] The position is equal.} Nd1+ {[%emt 0:00:02]} 39. Kf3 {[%emt 0:00:25]} Bd3 {[%emt 0:01:15] ...Bxc2 is the strong threat.} 40. Rf4+ {[%emt 0:00:39]} Kg6 {[%emt 0:01:36]} 41. Bd4 {[%emt 0:00:14]} Bd2 {[%emt 0:00:01]} 42. Ne3 {[%emt 0:02:42] Chess con chili.} Bxe3 {[%emt 0:00:26] A strong pair of Bishops.} 43. Rf6+ {[%emt 0:00:01]} Kg7 {[%emt 0:04:30]} (43... Kh5 $5 44. Rh2+ Kxg5 45. Rg2+ Kh5 46. Rh2+ Kg5 47. Rg2+ Kh5 48. Rh2+ Kg5 $11) 44. Re6+ $1 {[%emt 0:00:06]} Bxd4 {[%emt 0:00:03]} 45. Rxe8 {[%emt 0:00:05] Strongly threatening Rd8.} Bc3 {[%emt 0:00:06]} 46. Rh2 {[%emt 0:00:32]} Nb2 {[%emt 0:01:31]} 47. Re3 {[%emt 0:00:20] Black must now prevent Kg4.} a4 {[%emt 0:00:18] [#]} 48. Rxb2 $1 {[%emt 0:00:05][%mdl 64] Remove Defender} Bxb2 {[%emt 0:00:05]} 49. Rxd3 {[%emt 0:00:05]} a3 {[%emt 0:00:07] aiming for ...a2.} 50. Rd7+ {[%emt 0:00:06]} Kg6 {[%emt 0:00:01] Hoping for ...a2.} 51. Ra7 {[%emt 0:00:02] Threatens to win with Kg4.} Kxg5 {[%emt 0:00:05]} 52. Rxa3 {[%emt 0:00:06]} Bxa3 {[%emt 0:00:06]} 53. Kg2 {[%emt 0:00:01] Weighted Error Value: White=0.16 (very precise) /Black=0.14 (very precise)} 1/2-1/2

[Event "13th Chennai Open 2022"]
[Site "Chennai"]
[Date "2022.06.25"]
[Round "9.14"]
[White "Dinesh Kumar Jaganathan"]
[Black "Srijit Paul"]
[Result "1/2-1/2"]
[ECO "C40"]
[WhiteElo "1974"]
[BlackElo "2399"]
[Annotator "TA"]
[PlyCount "86"]
[EventDate "2022.06.19"]
[EventType "swiss"]
[EventCountry "IND"]
[SourceTitle "playchess.com"]
[Source "ChessBase"]
[SourceQuality "1"]
[TimeControl "5400+30"]

{[%evp 9,86,-67,-52,-72,-66,-66,-61,-54,-57,-61,-61,-70,-37,-72,-66,-63,-76,-77,0,-1,0,0,-8,0,0,-86,-78,-113,-112,-207,-186,-189,-92,-91,-90,-141,-144,-136,-48,-172,-172,-141,-77,-68,0,0,0,0,0,0,0,0,0,0,0,0,0,0,0,0,0,0,0,0,0,0,0,0,0,0,0,0,0,0,0,0,0,0,0]} 1. Nf3 {[%emt 0:00:04]} f5 {[%emt 0:06:45]} 2. d3 {[%emt 0:00:09]} Nc6 {[%emt 0:01:07]} 3. e4 {[%emt 0:00:23]} e5 {[%emt 0:00:06][%cal Be7e5,Be5e4][%mdl 32]} 4. exf5 {[%emt 0:00:18]} d5 {[%emt 0:00:09]} 5. d4 {[%emt 0:03:10]} e4 $1 {[%emt 0:02:54]} 6. Ne5 {[%emt 0:00:09] C40: Latvian and Elephant Gambits.} Nxe5 {[%emt 0:00:06]} 7. dxe5 {[%emt 0:00:58] [#] Qh5+ is the strong threat.} Bxf5 {[%emt 0:00:10] [#]} 8. Be3 $146 {[%emt 0:04:07] Against Bc5. Black is slightly better.} ({Predecessor:} 8. Be2 Qd7 9. O-O O-O-O 10. c3 Ne7 11. Be3 Kb8 12. b4 Ng6 13. b5 Qe8 14. Nd2 Nxe5 {0-1 (45) Adel Lahchaichi,O (2316)-Narciso Dublan,M (2468) Torredembarra 2018}) 8... Bb4+ {[%emt 0:08:40]} 9. c3 {[%emt 0:02:04]} Ba5 $1 {[%emt 0:00:05]} 10. Be2 {[%emt 0:08:16]} Ne7 {[%emt 0:01:24]} 11. Bh5+ {[%emt 0:05:47]} Bg6 {[%emt 0:11:39]} 12. Bg5 {[%emt 0:05:44]} Qd7 {[%emt 0:11:22]} 13. Bxe7 {[%emt 0:31:14]} Bxh5 {[%emt 0:01:26]} ({Black should play} 13... Kxe7 $17 14. O-O c6) 14. Qxh5+ $11 {[%emt 0:00:28]} g6 {[%emt 0:00:04]} 15. Qe2 {[%emt 0:04:27]} Kxe7 {[%emt 0:00:05]} 16. O-O {[%emt 0:02:24]} Qf5 {[%emt 0:04:26]} 17. f4 {[%emt 0:02:04]} (17. Qb5 $11 {remains equal.} Bb6 18. c4 (18. Qxd5 e3 $17)) 17... Raf8 $17 {[%emt 0:14:21]} 18. Nd2 {[%emt 0:12:41]} g5 {[%emt 0:00:45]} 19. g3 {[%emt 0:01:35]} (19. Kh1 $17 {keeps fighting.} c6 20. g4) 19... gxf4 {[%emt 0:00:49]} 20. Rxf4 {[%emt 0:02:22]} Qxe5 {[%emt 0:00:13]} (20... Bb6+ $19 21. Kh1 Qg6) 21. Nc4 {[%emt 0:02:12]} Bb6+ {[%emt 0:00:34]} (21... dxc4 $2 22. Rxe4 Qxe4 23. Qxe4+ Kd8 24. Qxb7 Bb6+ 25. Kh1 $18) 22. Nxb6 {[%emt 0:00:03]} (22. Kh1 $142 Qe6 23. Nxb6 axb6 24. Rh4) 22... axb6 {[%emt 0:00:01]} ({And not} 22... cxb6 23. Rh4 $11) ({Weaker is} 22... Rxf4 23. gxf4 Qg7+ 24. Kh1 axb6 25. c4 $17) 23. Raf1 {[%emt 0:00:16][%cal Ba1f1,Bf1f4,Bf4f2][%mdl 32]} h5 {[%emt 0:03:02] Against Qg4} (23... Rxf4 $17 24. Rxf4 Rf8) 24. Qe3 {[%emt 0:01:53]} (24. R4f2 $15) 24... Rxf4 $19 {[%emt 0:05:25]} 25. Rxf4 {[%emt 0:00:06][%cal Oc3c4][%mdl 4096] Endgame KQR-KQR} Rg8 {[%emt 0:03:03]} (25... Rf8 $142 {And now ...Rxf4 would win.} 26. Rxf8 Kxf8 27. Qh6+ Ke7 28. Qh7+ Kd6 29. Qh6+ Kd7 30. Qh7+ Kd6 31. Qh6+ Kd7) 26. c4 $17 {[%emt 0:03:10]} c6 {[%emt 0:03:48]} ({Better is} 26... Rg4 $15 27. cxd5 Rxf4 28. Qxf4 Kd6) 27. cxd5 $11 {[%emt 0:01:46] The position is equal.} cxd5 {[%emt 0:00:04]} 28. Rf2 {[%emt 0:00:15]} Rg6 {[%emt 0:00:57]} 29. Qa3+ {[%emt 0:00:36]} Qd6 {[%emt 0:05:44] [#] Threatens to win with ...Qxa3.} (29... Kd8 30. Rf7 (30. Qa8+ Kc7 $11) 30... Rc6 31. Qa8+ Rc8 32. Rf8+) 30. Qa8 {[%emt 0:00:06]} Rf6 {[%emt 0:09:06] aiming for ...Qc5.} (30... Qc5 $2 31. Qf8+ Kd7 32. Qf7+ Kc6 33. Qxg6+ $18) 31. Qxb7+ {[%emt 0:00:08]} Kf8 {[%emt 0:00:04]} 32. Rxf6+ {[%emt 0:01:18]} Qxf6 {[%emt 0:00:01]} 33. Qxd5 {[%emt 0:00:14] KQ-KQ} e3 {[%emt 0:01:06] Prevents Qd2. ( -> ...Qf2+)} 34. Qg2 {[%emt 0:00:21] Against Qf2+} Kg7 {[%emt 0:00:26]} 35. Qe2 {[%emt 0:01:34][%csl LRe3,LRh5]} Qe5 {[%emt 0:00:23]} 36. a4 {[%emt 0:01:48]} Qd4 {[%emt 0:02:29]} 37. b4 {[%emt 0:00:13]} Qd2 {[%emt 0:01:54]} 38. Kf1 {[%emt 0:00:21]} Qc1+ {[%emt 0:00:05]} 39. Kg2 {[%emt 0:00:17] Black must now prevent b5.} Qc6+ {[%emt 0:00:05]} 40. Kg1 {[%emt 0:00:38]} Qc1+ {[%emt 0:00:21]} 41. Kg2 {[%emt 0:00:18] Strongly threatening b5.} Qc6+ {[%emt 0:00:06]} 42. Kg1 {[%emt 0:00:04]} Qc1+ {[%emt 0:00:50]} 43. Kg2 {[%emt 0:00:07] Hoping for b5.} Qc6+ {[%emt 0:00:24] White happily takes the draw.  Weighted Error Value: White=0.17 (very precise) /Black=0.12 (very precise)} 1/2-1/2